bitfinex-derivatives/quotes_SOLF0:USTF0_20250705
["timestamp","ask_amount","ask_price","bid_price","bid_amount"]
[1751755766155,16.27219461,147.76,147.75,194.9]
[1751755769157,16.27317139,147.76,147.75,194.9]
[1751755769354,16.27317139,147.76,147.75,201.6665]
[1751755772153,16.27317139,147.76,147.75,194.9]
[1751755774762,21.09413284,147.76,147.75,194.9]
[1751755775165,23.43774817,147.76,147.72,2.34361533]
[1751755775364,23.43774817,147.76,147.69,46.68]
[1751755775365,23.47919154,147.75,147.71,2.34361533]
[1751755775565,4.82096145,147.74,147.71,2.34361533]
[1751755775766,4.82096145,147.73,147.71,9.11161533]
[1751755775959,6.7672,147.74,147.71,6.768]
[1751755776155,21.1693892,147.73,147.69,49.02361533]
[1751755776363,6.7688,147.7,147.69,46.68]
[1751755776561,11.59000934,147.7,147.69,46.68]
[1751755779468,11.5348608,147.7,147.69,46.68]
[1751755782368,4.7660608,147.7,147.69,46.68]
[1751755783071,4.7660608,147.7,147.69,53.4492]
[1751755784571,4.7660608,147.7,147.69,55.79281533]
[1751755786966,2.34361533,147.76,147.69,49.02361533]
[1751755787173,21.01712152,147.74,147.72,2.34361533]
[1751755787471,13.46668151,147.73,147.72,2.34361533]
[1751755788470,13.46668151,147.73,147.72,2.34434136]
[1751755788764,13.46668151,147.73,147.72,9.11214136]
[1751755792576,4.76453289,147.73,147.72,9.11214136]
[1751755792776,13.46758476,147.73,147.72,9.11214136]
[1751755793277,8.70305187,147.73,147.72,9.11214136]
[1751755793674,6.7662,147.76,147.73,6.7672]
[1751755793875,13.76319124,147.75,147.73,6.7672]
[1751755794074,8.70336463,147.74,147.73,6.7672]
[1751755795074,13.76400529,147.74,147.73,6.7672]
[1751755796181,8.70336463,147.74,147.73,6.7672]
[1751755796382,15.91036824,147.74,147.72,9.11194136]
[1751755796572,4.72328201,147.73,147.72,9.11194136]
[1751755800886,4.76717994,147.73,147.72,9.11194136]
[1751755801682,4.76717994,147.73,147.71,201.4481]
[1751755801887,4.76717994,147.73,147.69,46.68]
[1751755801888,12.39737764,147.72,147.69,46.68]
[1751755802084,12.39832672,147.71,147.69,46.68]
[1751755802386,4.76833437,147.7,147.69,46.68]
[1751755802779,13.5034304,147.7,147.69,46.68]
[1751755803288,4.76833437,147.7,147.69,46.68]
[1751755803786,11.53713437,147.7,147.69,46.68]
[1751755803982,11.53713437,147.7,147.68,2.34582998]
[1751755803983,16.67446707,147.7,147.68,2.34582998]
[1751755804188,4.76833437,147.69,147.68,2.34582998]
[1751755806086,6.7688,147.7,147.68,2.34582998]
[1751755809788,6.7688,147.7,147.68,9.11552998]
[1751755810488,6.7688,147.7,147.68,6.7697]
[1751755810688,6.7688,147.7,147.68,2.34582998]
[1751755811786,6.7687,147.71,147.68,9.11532998]
[1751755811987,4.73618126,147.7,147.68,9.11532998]
[1751755812186,6.7687,147.71,147.68,9.11532998]
[1751755812387,4.73639318,147.7,147.68,9.11532998]
[1751755812689,6.7687,147.71,147.68,9.11532998]
[1751755812887,4.7256195,147.7,147.68,9.11532998]
[1751755813088,6.7687,147.71,147.68,9.11532998]
[1751755813287,4.72590166,147.7,147.68,9.11532998]
[1751755813487,6.7687,147.71,147.68,9.11532998]
[1751755813688,4.72589942,147.7,147.68,9.11532998]
[1751755813887,6.7687,147.71,147.68,9.11532998]
[1751755814088,4.72589942,147.7,147.68,9.11532998]
[1751755814290,6.7687,147.71,147.68,9.11532998]
[1751755814492,4.72625406,147.7,147.68,9.11532998]
[1751755814683,6.7687,147.71,147.68,9.11532998]
[1751755814884,4.72625294,147.7,147.68,9.11532998]
[1751755815185,6.7689,147.7,147.68,9.11532998]
[1751755815387,6.7689,147.7,147.68,2.34582998]
[1751755818395,6.7689,147.7,147.67,203.67582998]
[1751755821197,4.74135941,147.69,147.67,203.67582998]
[1751755821396,6.7689,147.7,147.67,203.67582998]
[1751755821597,4.74144553,147.69,147.67,203.67582998]
[1751755821796,6.7689,147.7,147.67,203.67582998]
[1751755821996,4.74144553,147.69,147.67,203.67582998]
[1751755822295,6.7689,147.7,147.67,203.67582998]
[1751755822497,4.74138496,147.69,147.67,203.67582998]
[1751755822690,6.7689,147.7,147.67,203.67582998]
[1751755822886,4.74138609,147.69,147.67,203.67582998]
[1751755823185,6.7689,147.7,147.67,203.67582998]
[1751755823385,4.74132649,147.69,147.67,203.67582998]
[1751755823586,6.7689,147.7,147.67,203.67582998]
[1751755823793,2.34582998,147.68,147.65,46.1]
[1751755823991,13.46335376,147.67,147.65,46.1]
[1751755824187,2.34582998,147.68,147.65,46.1]
[1751755824391,20.23213635,147.67,147.65,46.1]
[1751755824590,2.34582998,147.68,147.65,46.1]
[1751755824797,6.7706,147.66,147.65,240.68]
[1751755826199,6.7706,147.66,147.65,46.1]
[1751755826396,11.5108825,147.66,147.65,46.1]
[1751755828001,23.38022807,147.66,147.61,46.06]
[1751755828201,2.34582998,147.64,147.61,240.64]
[1751755828394,2.34582998,147.64,147.61,46.06]
[1751755828996,6.7724,147.62,147.61,46.06]
[1751755829202,4.73788431,147.62,147.59,194.58]
[1751755829400,6.84742998,147.65,147.61,2.34582998]
[1751755829600,23.35770319,147.64,147.6,196.92582998]
[1751755829802,4.73425254,147.63,147.6,196.92582998]
[1751755830000,2.34582998,147.64,147.6,196.92582998]
[1751755830201,13.44240133,147.63,147.6,196.92582998]
[1751755830495,6.7727,147.62,147.6,196.92582998]
[1751755830697,6.7727,147.62,147.6,194.58]
[1751755830901,6.7727,147.62,147.6,196.92582998]
[1751755831102,6.7727,147.62,147.6,194.58]
[1751755832101,6.7729,147.61,147.57,46.06]
[1751755832300,6.7729,147.61,147.59,2.34582998]
[1751755834498,6.7729,147.61,147.58,201.394]
[1751755834705,6.7734,147.6,147.59,194.64]
[1751755835200,6.7741,147.59,147.57,46.06]
[1751755835705,2.34582998,147.59,147.57,240.7]
[1751755835901,2.34582998,147.59,147.57,46.06]
[1751755836301,6.7743,147.58,147.57,46.06]
[1751755837305,9.11982998,147.59,147.57,46.06]
[1751755839197,6.7743,147.58,147.57,46.06]
[1751755840004,9.11972998,147.59,147.57,46.06]
[1751755840201,46.08,147.64,147.57,48.40582998]
[1751755840407,2.34582998,147.62,147.58,2.34582998]
[1751755840705,6.7731,147.61,147.58,9.11982998]
[1751755841306,46.08,147.64,147.6,2.34582998]
[1751755841702,6.7722,147.63,147.6,203.89912998]
[1751755841908,6.7722,147.63,147.6,201.5533]
[1751755853522,4.5016,147.65,147.6,201.5533]
[1751755853920,6.7723,147.63,147.6,201.5533]
[1751755858824,6.7723,147.63,147.61,6.7729]
[1751755860828,6.7725,147.62,147.6,201.5532]
[1751755862230,6.7722,147.63,147.6,201.5532]
[1751755865132,6.7722,147.63,147.6,203.90149472]
[1751755867636,6.7725,147.62,147.6,203.90149472]
[1751755870138,6.7722,147.63,147.6,203.90149472]
[1751755870337,20.75558777,147.62,147.6,203.90149472]
[1751755870533,6.7722,147.63,147.6,203.90149472]
[1751755870740,15.7968376,147.62,147.6,203.90149472]
[1751755871035,6.7722,147.63,147.6,203.90149472]
[1751755871239,20.75961063,147.62,147.6,203.90149472]
[1751755871440,13.32922043,147.61,147.6,203.90149472]
[1751755872340,4.60731061,147.61,147.6,203.90149472]
[1751755872539,13.33959517,147.61,147.6,203.90149472]
[1751755873236,15.81224106,147.61,147.6,203.90149472]
[1751755873433,8.73228456,147.61,147.6,203.90149472]
[1751755873832,9.50410021,147.65,147.6,203.90829472]
[1751755874037,9.50410021,147.66,147.64,2.34829472]
[1751755874233,9.50410021,147.66,147.65,2.34829472]
[1751755874434,21.56778918,147.66,147.65,2.34829472]
[1751755874637,21.56778918,147.66,147.65,9.11939472]
[1751755876842,28.33858918,147.66,147.63,46.08]
[1751755877042,4.61162057,147.65,147.64,2.34829472]
[1751755877543,4.61162057,147.65,147.64,9.11979472]
[1751755880541,6.7704,147.67,147.64,9.11979472]
[1751755880838,4.63560948,147.66,147.64,9.11979472]
[1751755881040,6.7704,147.67,147.64,9.11979472]
[1751755881243,12.11720187,147.66,147.64,9.11979472]
[1751755881438,6.7704,147.67,147.64,9.11979472]
[1751755881741,4.6352827,147.66,147.64,9.11979472]
[1751755881943,6.7704,147.67,147.64,9.11979472]
[1751755882144,4.63528159,147.66,147.64,9.11979472]
[1751755882337,6.7704,147.67,147.64,9.11979472]
[1751755882642,4.6350533,147.66,147.64,9.11979472]
[1751755882838,6.7704,147.67,147.64,9.11979472]
[1751755883045,4.64584157,147.66,147.64,9.11979472]
[1751755883245,4.64611533,147.65,147.64,9.11979472]
[1751755883437,6.7704,147.67,147.64,9.11979472]
[1751755883643,4.6457104,147.66,147.64,9.11979472]
[1751755883947,6.7704,147.67,147.64,9.11979472]
[1751755884141,12.12761433,147.66,147.64,9.11979472]
[1751755884442,6.7704,147.67,147.64,9.11979472]
[1751755884643,12.12752006,147.66,147.64,9.11979472]
[1751755884844,6.7704,147.67,147.64,9.11979472]
[1751755885043,12.12752006,147.66,147.64,9.11979472]
[1751755885242,4.64618534,147.65,147.64,9.11979472]
[1751755885443,6.7704,147.67,147.64,9.11979472]
[1751755885643,12.12772075,147.66,147.64,9.11979472]
[1751755885950,6.7704,147.67,147.64,9.11979472]
[1751755886243,20.75150388,147.66,147.64,9.11979472]
[1751755886447,6.7704,147.67,147.64,9.11979472]
[1751755886639,20.74852352,147.66,147.64,9.11979472]
[1751755886836,6.7704,147.67,147.64,9.11979472]
[1751755887035,20.74852352,147.66,147.64,9.11979472]
[1751755887240,6.7704,147.67,147.64,9.11979472]
[1751755887542,20.74693783,147.66,147.64,9.11979472]
[1751755887740,6.7704,147.67,147.64,9.11979472]
[1751755887941,20.73615054,147.66,147.64,9.11979472]
[1751755888240,6.7704,147.67,147.64,9.11979472]
[1751755888437,13.25569917,147.66,147.64,9.11979472]
[1751755888741,6.7704,147.67,147.64,9.11979472]
[1751755888941,20.73467037,147.66,147.64,9.11979472]
[1751755889240,6.7704,147.67,147.64,9.11979472]
[1751755889545,13.2546699,147.66,147.64,9.11979472]
[1751755889744,6.7704,147.67,147.64,9.11979472]
[1751755889946,20.73322082,147.66,147.64,9.11979472]
[1751755890250,6.7704,147.67,147.64,9.11979472]
[1751755890550,20.73260514,147.66,147.64,9.11979472]
[1751755890746,6.7704,147.67,147.64,9.11979472]
[1751755890946,20.73260514,147.66,147.64,9.11979472]
[1751755891249,6.7704,147.67,147.64,9.11979472]
[1751755891449,18.28854128,147.66,147.64,9.11979472]
[1751755891649,6.7704,147.67,147.64,9.11979472]
[1751755891852,18.28836047,147.66,147.64,9.11979472]
[1751755892149,6.7704,147.67,147.64,9.11979472]
[1751755892350,18.28819172,147.66,147.64,9.11979472]
[1751755892550,6.7704,147.67,147.64,9.11979472]
[1751755892750,18.29841547,147.66,147.64,9.11979472]
[1751755892953,6.7704,147.67,147.64,9.11979472]
[1751755893248,18.24590776,147.66,147.64,9.11979472]
[1751755893449,6.7704,147.67,147.64,9.11979472]
[1751755893647,18.24532325,147.66,147.64,9.11979472]
[1751755893850,6.7704,147.67,147.64,9.11979472]
[1751755894049,18.25781444,147.66,147.64,9.11979472]
[1751755894242,6.7704,147.67,147.64,9.11979472]
[1751755894441,18.25736914,147.66,147.64,9.11979472]
[1751755894641,6.7704,147.67,147.64,9.11979472]
[1751755894851,18.25736914,147.66,147.64,9.11979472]
[1751755895043,6.7704,147.67,147.64,9.11979472]
[1751755895244,18.25736914,147.66,147.65,6.7711]
[1751755895551,11.83782382,147.7,147.65,2.34829472]
[1751755895752,20.72627364,147.69,147.66,2.34829472]
[1751755896052,13.20829344,147.68,147.66,9.11859472]
[1751755896351,8.56546604,147.67,147.66,9.11859472]
[1751755900054,8.56546604,147.67,147.66,6.7703]
[1751755900258,8.56546604,147.67,147.65,9.11919472]
[1751755900449,6.7698,147.68,147.65,2.34829472]
[1751755900649,8.56368003,147.67,147.65,9.11909472]
[1751755900849,6.7698,147.68,147.65,6.7708]
[1751755901154,8.56367769,147.67,147.65,6.7708]
[1751755901355,6.7698,147.68,147.65,6.7708]
[1751755901653,8.56387658,147.67,147.65,6.7708]
[1751755901856,6.7698,147.68,147.65,6.7708]
[1751755902055,8.56387658,147.67,147.65,6.7708]
[1751755902250,6.7698,147.68,147.65,6.7708]
[1751755902450,8.56417049,147.67,147.65,6.7708]
[1751755902651,6.7702,147.67,147.65,6.7708]
[1751755903158,6.7706,147.66,147.64,6.7714]
[1751755904763,55.5695291,147.72,147.65,2.34829472]
[1751755904963,2.34829472,147.7,147.65,2.34829472]
[1751755905162,20.777046,147.69,147.65,2.34829472]
[1751755905462,4.68619442,147.68,147.66,6.7703]
[1751755905657,2.34829472,147.7,147.65,2.34829472]
[1751755905864,6.7701,147.68,147.65,9.11919472]
[1751755906362,6.7701,147.68,147.65,2.34829472]
[1751755907565,6.7701,147.68,147.66,6.7706]
[1751755907866,6.7694,147.69,147.66,6.7706]
[1751755908065,4.68621423,147.68,147.66,6.7706]
[1751755908265,6.7694,147.69,147.66,6.7706]
[1751755908466,4.68593488,147.68,147.66,6.7706]
[1751755908767,6.7694,147.69,147.66,6.7706]
[1751755908959,4.68631969,147.68,147.66,6.7706]
[1751755909161,6.7694,147.69,147.66,6.7706]
[1751755909359,12.21635772,147.68,147.66,6.7706]
[1751755909561,4.68631969,147.67,147.66,6.7706]
[1751755910762,4.68631969,147.67,147.66,9.11889472]
[1751755911264,6.7694,147.69,147.66,9.11889472]
[1751755911469,12.22065782,147.68,147.66,9.11889472]
[1751755911661,4.68836523,147.67,147.66,9.11889472]
[1751755912756,9.74749405,147.67,147.66,9.11692724]
[1751755913161,9.74749405,147.67,147.66,2.34632724]
[1751755913357,12.22073855,147.67,147.66,2.34632724]
[1751755913564,13.93200973,147.67,147.64,2.34632724]
[1751755913764,4.68836523,147.66,147.64,2.34632724]
[1751755913965,6.7704,147.67,147.64,9.11762724]
[1751755914163,4.680042,147.66,147.64,9.11762724]
[1751755914461,6.7704,147.67,147.64,9.11762724]
[1751755914659,9.74285064,147.66,147.64,9.11762724]
[1751755914863,6.7704,147.67,147.64,9.11762724]
[1751755915066,9.74285518,147.66,147.64,9.11762724]
[1751755915269,4.68225266,147.65,147.64,9.11762724]
[1751755920474,6.7704,147.67,147.65,6.7711]
[1751755920676,20.79531567,147.66,147.65,6.7711]
[1751755921575,13.26232315,147.66,147.65,6.7711]
[1751755921777,12.20927169,147.66,147.65,6.7711]
[1751755921977,20.79753133,147.66,147.65,6.7711]
[1751755922476,12.20927169,147.66,147.65,6.7711]
[1751755922976,4.6761913,147.66,147.65,6.7711]
[1751755926277,4.6761913,147.66,147.64,2.34632724]
[1751755926478,4.6761913,147.65,147.64,2.34632724]
[1751755926680,4.6761913,147.65,147.63,242.98632724]
[1751755926875,2.34632724,147.68,147.63,242.98632724]
[1751755927081,27.24514964,147.67,147.64,6.7715]
[1751755927278,12.13919241,147.66,147.64,6.7715]
[1751755927582,4.67625693,147.65,147.64,6.7715]
[1751755932485,4.67625693,147.65,147.64,9.11838543]
[1751755937086,6.7704,147.67,147.65,6.771]
[1751755937284,4.68820117,147.66,147.65,9.11788543]
[1751755937486,4.68820117,147.66,147.65,203.67788543]
[1751755938091,6.7695,147.69,147.66,6.7703]
[1751755938290,20.44557895,147.68,147.66,9.11718543]
[1751755938586,4.67692897,147.67,147.66,9.11718543]
[1751755945698,6.769,147.7,147.68,6.7697]
[1751755945899,20.4727886,147.69,147.68,9.11658543]
[1751755954308,4.67602869,147.69,147.68,9.11658543]
[1751755954510,13.18555441,147.69,147.68,9.11658543]
[1751755954906,13.22577153,147.69,147.68,9.11658543]
[1751755957209,4.71624581,147.69,147.68,9.11658543]
[1751755957809,4.71624581,147.69,147.67,6.7699]
[1751755958010,4.71624581,147.68,147.67,9.11678543]
[1751755958311,6.7688,147.7,147.67,9.11678543]
[1751755958610,20.59925737,147.69,147.65,2.34688543]
[1751755958809,7.06166206,147.68,147.64,196.82688543]
[1751755959010,2.34688543,147.68,147.64,196.82688543]
[1751755959611,9.11688543,147.68,147.65,6.7708]
[1751755959811,4.68515603,147.67,147.65,6.7708]
[1751755960110,11.45613983,147.66,147.64,6.7714]
[1751755960313,6.7707,147.66,147.64,6.7714]
[1751755961209,4.68637285,147.65,147.63,55.19868543]
[1751755961410,6.7707,147.66,147.63,55.19868543]
[1751755961611,4.68650103,147.65,147.63,55.19868543]
[1751755961909,6.7707,147.66,147.63,55.19868543]
[1751755962109,4.68650103,147.65,147.63,55.19868543]
[1751755962314,6.7707,147.66,147.63,55.19868543]
[1751755962702,6.7707,147.66,147.64,2.34688543]
[1751755964614,6.7707,147.66,147.64,9.11838543]
[1751755967113,4.65458459,147.65,147.64,9.11838543]
[1751755967417,6.7707,147.66,147.64,9.11838543]
[1751755973323,2.34688543,147.68,147.65,6.771]
[1751755973522,18.09532309,147.67,147.66,2.34688543]
[1751755973717,4.64301204,147.67,147.66,2.34688543]
[1751755974320,6.7695,147.69,147.66,9.11728543]
[1751755974516,18.09294083,147.68,147.66,9.11728543]
[1751755974719,6.7695,147.69,147.66,9.11728543]
[1751755974918,18.09294083,147.68,147.66,9.11728543]
[1751755975119,6.7695,147.69,147.66,9.11728543]
[1751755975318,9.61443632,147.68,147.66,9.11728543]
[1751755975518,6.7695,147.69,147.66,9.11728543]
[1751755975718,18.09326887,147.68,147.66,9.11728543]
[1751755975918,6.7695,147.69,147.66,9.11728543]
[1751755976118,18.09326887,147.68,147.66,9.11728543]
[1751755976318,6.7695,147.69,147.66,9.11728543]
[1751755976523,18.09364012,147.68,147.66,9.11728543]
[1751755976824,6.7695,147.69,147.67,2.34688543]
[1751755977022,12.05531576,147.68,147.67,2.34688543]
[1751755977322,55.51318717,147.72,147.67,2.34688543]
[1751755977323,6.7689,147.7,147.67,9.11708543]
[1751755977524,20.53274588,147.69,147.67,9.11708543]
[1751755977722,4.6419507,147.68,147.67,9.11708543]
[1751755979427,94.21659833,147.73,147.68,6.7695]
[1751755979428,6.7685,147.71,147.68,6.7695]
[1751755979625,9.63662416,147.7,147.68,9.11638543]
[1751755979828,6.7685,147.71,147.69,2.34688543]
[1751755980022,4.65205412,147.7,147.69,2.34688543]
[1751755980825,9.63599253,147.7,147.69,2.34688543]
[1751755981130,27.32303069,147.7,147.68,2.34688543]
[1751755981329,4.65205412,147.69,147.67,9.11678543]
[1751755981529,6.7688,147.7,147.67,9.11678543]
[1751755981725,4.65229909,147.69,147.67,9.11678543]
[1751755981924,6.7688,147.7,147.67,9.11678543]
[1751755982127,4.65229909,147.69,147.67,9.11678543]
[1751755982323,6.7688,147.7,147.67,9.11678543]
[1751755982523,4.65213765,147.69,147.67,9.11678543]
[1751755982726,6.7688,147.7,147.67,9.11678543]
[1751755983022,4.67372574,147.69,147.67,9.11678543]
[1751755983219,6.7688,147.7,147.68,6.7697]
[1751755983419,4.67351528,147.69,147.68,6.7697]
[1751755983623,4.67351528,147.69,147.68,9.11658543]
[1751755984232,4.67331685,147.69,147.68,9.11658543]
[1751755985133,6.7685,147.71,147.68,9.11658543]
[1751755985332,9.69199726,147.7,147.68,9.11658543]
[1751755985532,6.7685,147.71,147.68,9.11658543]
[1751755985832,9.69199726,147.7,147.68,9.11658543]
[1751755986134,6.7685,147.71,147.68,9.11658543]
[1751755986332,9.69127745,147.7,147.68,9.11658543]
[1751755986534,6.7685,147.71,147.68,9.11658543]
[1751755986729,20.61623981,147.7,147.68,9.11658543]
[1751755986930,4.67245411,147.69,147.68,9.11658543]
[1751755990635,6.7685,147.71,147.68,9.11658543]
[1751755990835,4.66280554,147.7,147.68,9.11658543]
[1751755991136,6.7685,147.71,147.68,9.11658543]
[1751755991335,4.66252962,147.7,147.68,9.11658543]
[1751755991536,6.7685,147.71,147.68,9.11658543]
[1751755991836,4.66252962,147.7,147.68,9.11658543]
[1751755992038,6.7685,147.71,147.68,9.11658543]
[1751755992338,4.66242928,147.7,147.68,9.11658543]
[1751755992530,6.7685,147.71,147.68,9.11658543]
[1751755992731,4.66226848,147.7,147.68,9.11658543]
[1751755993030,6.7685,147.71,147.68,9.11658543]
[1751755993231,4.66218613,147.7,147.68,9.11658543]
[1751755993438,6.7685,147.71,147.68,9.11658543]
[1751755993636,4.66202132,147.7,147.68,9.11658543]
[1751755993936,6.7685,147.71,147.68,9.11658543]
[1751755994137,4.66202132,147.7,147.68,9.11658543]
[1751755994437,6.7685,147.71,147.68,9.11658543]
[1751755994636,4.66178741,147.7,147.68,9.11658543]
[1751755994836,6.7685,147.71,147.68,9.11658543]
[1751755995038,4.66178741,147.7,147.68,9.11658543]
[1751755995234,6.7685,147.71,147.68,9.11658543]
[1751755995436,4.66156614,147.7,147.68,9.11658543]
[1751755995735,6.7685,147.71,147.68,9.11658543]
[1751755995932,4.66156614,147.7,147.68,9.11658543]
[1751755996237,6.7685,147.71,147.68,9.11658543]
[1751755996435,4.66136648,147.7,147.68,9.11658543]
[1751755996640,6.7685,147.71,147.68,9.11658543]
[1751755996836,4.66136648,147.7,147.68,9.11658543]
[1751755997032,6.7685,147.71,147.68,9.11658543]
[1751755997334,4.66134403,147.7,147.68,9.11658543]
[1751755997536,6.7685,147.71,147.68,9.11658543]
[1751755997734,4.66117519,147.7,147.68,9.11658543]
[1751755997939,6.7685,147.71,147.68,9.11658543]
[1751755998141,4.66117519,147.7,147.68,9.11658543]
[1751755998433,6.7685,147.71,147.69,6.7692]
[1751755998641,4.66104678,147.7,147.69,6.7692]
[1751755999737,4.66104678,147.7,147.67,2.34688543]
[1751755999931,2.34688543,147.71,147.67,2.34688543]
[1751756000239,11.42982103,147.7,147.67,9.11668543]
[1751756000438,6.7689,147.7,147.67,9.11668543]
[1751756003035,6.7693,147.69,147.67,9.11668543]
[1751756004440,6.7693,147.69,147.67,6.7698]
[1751756004740,6.7693,147.69,147.66,55.11728543]
[1751756011046,6.7697,147.68,147.66,55.11728543]
[1751756011241,2.34688543,147.7,147.66,55.11728543]
[1751756011443,9.69620737,147.69,147.66,55.11728543]
[1751756011635,2.34688543,147.7,147.66,55.11728543]
[1751756011834,4.6641415,147.69,147.66,55.11728543]
[1751756012138,6.7695,147.69,147.66,55.11728543]
[1751756013143,4.6549358,147.68,147.66,55.11728543]
[1751756013343,6.7695,147.69,147.66,55.11728543]
[1751756013543,4.6549358,147.68,147.66,55.11728543]
[1751756013747,6.7695,147.69,147.66,55.11728543]
[1751756014041,4.6549358,147.68,147.66,55.11728543]
[1751756014241,6.7695,147.69,147.66,55.11728543]
[1751756014447,4.65588882,147.68,147.66,55.11728543]
[1751756014646,6.7695,147.69,147.66,55.11728543]
[1751756014944,4.65588882,147.68,147.66,55.11728543]
[1751756015142,6.7695,147.69,147.66,55.11728543]
[1751756015342,4.65600549,147.68,147.66,55.11728543]
[1751756015542,6.7695,147.69,147.66,55.11728543]
[1751756015742,4.65699977,147.68,147.66,55.11728543]
[1751756015944,6.7695,147.69,147.66,55.11728543]
[1751756016245,4.65699977,147.68,147.66,9.11728543]
[1751756016447,6.7695,147.69,147.66,9.11728543]
[1751756016739,4.65710169,147.68,147.66,9.11728543]
[1751756016946,6.7695,147.69,147.66,9.11728543]
[1751756017147,4.65710169,147.68,147.66,9.11728543]
[1751756017346,6.7695,147.69,147.66,9.11728543]
[1751756017544,4.65841346,147.68,147.66,9.11728543]
[1751756017744,6.7695,147.69,147.66,9.11728543]
[1751756017945,4.65841346,147.68,147.66,9.11728543]
[1751756018146,6.7695,147.69,147.66,9.11728543]
[1751756018346,4.66008479,147.68,147.66,9.11728543]
[1751756018548,6.7695,147.69,147.66,9.11728543]
[1751756018747,4.66008479,147.68,147.66,9.11728543]
[1751756018950,6.7695,147.69,147.66,9.11728543]
[1751756019149,9.69347044,147.68,147.66,9.11728543]
[1751756019449,6.7695,147.69,147.66,9.11728543]
[1751756019650,9.69423268,147.68,147.66,9.11728543]
[1751756019852,6.7695,147.69,147.66,9.11728543]
[1751756020150,9.69427089,147.68,147.66,9.11728543]
[1751756020351,2.34688543,147.7,147.66,2.34688543]
[1751756020551,20.64841893,147.69,147.66,2.34688543]
[1751756020753,12.14783051,147.69,147.64,242.7249]
[1751756020947,18.91743051,147.69,147.66,9.11738543]
[1751756021153,4.66126636,147.68,147.66,9.11738543]
[1751756021556,6.7696,147.69,147.66,9.11738543]
[1751756022054,9.68354532,147.68,147.66,9.11738543]
[1751756022255,6.7696,147.69,147.66,9.11738543]
[1751756022453,9.68387812,147.68,147.66,9.11738543]
[1751756022653,6.7696,147.69,147.66,9.11738543]
[1751756022853,9.58387812,147.68,147.66,9.11738543]
[1751756023054,6.7696,147.69,147.66,9.11738543]
[1751756023256,4.66189935,147.68,147.66,9.11738543]
[1751756023456,6.7696,147.69,147.66,9.11738543]
[1751756023655,4.66192091,147.68,147.67,2.34688543]
[1751756025257,6.7696,147.69,147.67,2.34688543]
[1751756029261,6.769,147.7,147.67,9.11678543]
[1751756029558,10.95659803,147.69,147.67,9.11678543]
[1751756029759,6.769,147.7,147.67,9.11678543]
[1751756029959,10.95659803,147.69,147.67,9.11678543]
[1751756030158,6.769,147.7,147.67,9.11678543]
[1751756030359,10.9567521,147.69,147.67,9.11678543]
[1751756030561,6.769,147.7,147.67,9.11678543]
[1751756030759,10.9567521,147.69,147.67,9.11678543]
[1751756030964,6.769,147.7,147.67,9.11678543]
[1751756031260,10.9567521,147.69,147.67,9.11678543]
[1751756031461,6.769,147.7,147.67,9.11678543]
[1751756031661,10.95693244,147.69,147.67,9.11678543]
[1751756031961,6.769,147.7,147.67,9.11678543]
[1751756032163,10.95693244,147.69,147.67,9.11678543]
[1751756032362,6.769,147.7,147.67,9.11678543]
[1751756032564,10.95688061,147.69,147.67,9.11678543]
[1751756032764,6.769,147.7,147.67,9.11678543]
[1751756032966,10.95688061,147.69,147.67,9.11678543]
[1751756033165,4.64028468,147.68,147.67,9.11678543]
[1751756034770,9.67278705,147.68,147.67,9.11678543]
[1751756035371,9.67278705,147.68,147.67,2.34688543]
[1751756037173,18.184133,147.68,147.67,2.34688543]
[1751756038881,18.184133,147.68,147.66,203.47738543]
[1751756041485,4.68783945,147.65,147.64,46.0]
[1751756044276,6.7703,147.67,147.64,55.11838543]
[1751756044574,18.39375692,147.66,147.64,55.11838543]
[1751756044775,6.7703,147.67,147.64,55.11838543]
[1751756045075,18.39375692,147.66,147.64,55.11838543]
[1751756045381,6.7703,147.67,147.64,55.11838543]
[1751756045679,18.37345174,147.66,147.64,55.11838543]
[1751756045881,6.7703,147.67,147.64,55.11838543]
[1751756046076,18.37345174,147.66,147.64,55.11838543]
[1751756046277,6.7703,147.67,147.64,55.11838543]
[1751756046478,13.34374841,147.66,147.64,55.11838543]
[1751756046682,6.7703,147.67,147.64,55.11838543]
[1751756046980,13.34312309,147.66,147.64,55.11838543]
[1751756047180,6.7703,147.67,147.64,55.11838543]
[1751756047375,13.34248345,147.66,147.64,55.11838543]
[1751756047677,6.7703,147.67,147.64,55.11838543]
[1751756047876,13.34248345,147.66,147.64,55.11838543]
[1751756048079,6.7703,147.67,147.65,2.34688543]
[1751756048381,13.34223074,147.66,147.65,2.34688543]
[1751756049282,4.66218023,147.66,147.65,2.34688543]